Department Family,Entity,Date,Expenses Type,Expense Area,Supplier,Transaction Number,  Total  ,
Department of Health,The Christie NHS Foundation Trust,01/07/2021,Drugs,Drugs,ALCURA UK LIMITED,0000670512,"56,047.07",
Department of Health,The Christie NHS Foundation Trust,01/07/2021,Drugs,Drugs,BAXTER HEALTHCARE LTD,0000669367,"109,061.08",
Department of Health,The Christie NHS Foundation Trust,01/07/2021,Drugs,Drugs,BAXTER HEALTHCARE LTD,0000669368,"71,790.11",
Department of Health,The Christie NHS Foundation Trust,01/07/2021,Drugs,Drugs,BAXTER HEALTHCARE LTD,0000669369,"108,796.97",
Department of Health,The Christie NHS Foundation Trust,01/07/2021,Drugs,Drugs,BAXTER HEALTHCARE LTD,0000669375,"117,000.00",
Department of Health,The Christie NHS Foundation Trust,01/07/2021,Drugs,Drugs,BAXTER HEALTHCARE LTD,0000669476,"90,730.82",
Department of Health,The Christie NHS Foundation Trust,01/07/2021,Drugs,Drugs,BAXTER HEALTHCARE LTD,0000669841,"72,800.39",
Department of Health,The Christie NHS Foundation Trust,01/07/2021,Drugs,Drugs,HEALTHCARE AT HOME LTD,0000669898,"26,952.00",
Department of Health,The Christie NHS Foundation Trust,01/07/2021,Drugs,Drugs,THE CHRISTIE CLINIC (HCA),0000668955,"35,475.00",
Department of Health,The Christie NHS Foundation Trust,01/07/2021,Medical Equipment,Network Services,XIEL LTD,0000669618,"25,141.60",
Department of Health,The Christie NHS Foundation Trust,01/07/2021,PET-CT Recharge - March 2021, Christie Medical Physics,ALLIANCE MEDICAL LTD,0000669606,"31,020.00",
Department of Health,The Christie NHS Foundation Trust,05/07/2021,Management Services - May 2021, Christie Pathology Partner,THE CHRISTIE PATHOLOGY PARTNERSHIP LLP,0000670882,"229,338.84",
Department of Health,The Christie NHS Foundation Trust,07/07/2021,Rates,Estates & Facilities,DD M/CR CITY COUNCIL (RATES),0000671431,"75,629.00",
Department of Health,The Christie NHS Foundation Trust,08/07/2021,Drugs,Drugs,BAXTER HEALTHCARE LTD,0000669923,"78,207.01",
Department of Health,The Christie NHS Foundation Trust,08/07/2021,Drugs,Drugs,BAXTER HEALTHCARE LTD,0000670292,"80,325.11",
Department of Health,The Christie NHS Foundation Trust,08/07/2021,Drugs,Drugs,BAXTER HEALTHCARE LTD,0000669842,"154,584.95",
Department of Health,The Christie NHS Foundation Trust,08/07/2021,Drugs,Drugs,BAXTER HEALTHCARE LTD,0000669843,"81,745.78",
Department of Health,The Christie NHS Foundation Trust,08/07/2021,Drugs,Drugs,BAXTER HEALTHCARE LTD,0000671251,"358,148.40",
Department of Health,The Christie NHS Foundation Trust,08/07/2021,Drugs,Drugs,LLOYDSPHARMACY CLINICAL HOMECARE,0000671296,"39,889.00",
Department of Health,The Christie NHS Foundation Trust,08/07/2021,Provision Charge Services - June 2021,Network Services,MID CHESHIRE HOSPITALS NHS FT,0000669508,"52,893.00",
Department of Health,The Christie NHS Foundation Trust,08/07/2021,Blood Products,Network Services,NHS BLOOD AND TRANSPLANT,0000669927,"28,346.66",
Department of Health,The Christie NHS Foundation Trust,08/07/2021,Management Services - May 2021, Christie Pathology Partner,CPP FACILITIES LLP,0000671201,"229,338.84",
Department of Health,The Christie NHS Foundation Trust,08/07/2021,Pathology Testing Services - May 2021, Christie Pathology Partner,THE CHRISTIE PATHOLOGY PARTNERSHIP LLP,0000670788,"482,578.22",
Department of Health,The Christie NHS Foundation Trust,08/07/2021,Project Management Works,Capital,INTEGRATED HEALTH PROJECTS,0000670840,"3,128,457.40",
Department of Health,The Christie NHS Foundation Trust,08/07/2021,Project Management Fee,Capital,VINCI CONSTRUCTION UK LIMITED,0000671241,"1,540,741.79",
Department of Health,The Christie NHS Foundation Trust,08/07/2021,Software Application Subscription,Digital Services,SOFTCAT PLC,0000670044,"98,997.00",
Department of Health,The Christie NHS Foundation Trust,08/07/2021,System Support Package - July 2021,Digital Services,SYSTEM C HEALTHCARE,0000669934,"23,362.71",
Department of Health,The Christie NHS Foundation Trust,15/07/2021,Drugs,Drugs,BAXTER HEALTHCARE LTD,0000670293,"86,552.69",
Department of Health,The Christie NHS Foundation Trust,15/07/2021,Drugs,Drugs,BAXTER HEALTHCARE LTD,0000670295,"89,770.19",
Department of Health,The Christie NHS Foundation Trust,15/07/2021,Drugs,Drugs,BAXTER HEALTHCARE LTD,0000670296,"116,547.72",
Department of Health,The Christie NHS Foundation Trust,15/07/2021,Drugs,Drugs,HEALTHCARE AT HOME LTD,0000671277,"35,956.00",
Department of Health,The Christie NHS Foundation Trust,15/07/2021,Blood Products,Network Services,DD NHS BLOOD AND TRANSPLANT,0000672193,"160,265.00",
Department of Health,The Christie NHS Foundation Trust,15/07/2021,Medical Equipment,Network Services,GILEAD SCIENCES LTD,0000670193,"227,605.00",
Department of Health,The Christie NHS Foundation Trust,15/07/2021,Maintenance Call-Off Contract,Network Services,PTW UK LTD,0000668888,"47,560.00",
Department of Health,The Christie NHS Foundation Trust,15/07/2021,Service Transfer Costs - June 2021,Network Services,TAMESIDE AND GLOSSOP INTEGRATED CARE NHS,0000670425,"56,640.00",
Department of Health,The Christie NHS Foundation Trust,15/07/2021,"CNST,LTPS&PES - July Direct Debit",Quality & Standards,DD  NHS RESOLUTION,0000672004,"177,439.90",
Department of Health,The Christie NHS Foundation Trust,15/07/2021,Rental Building - April 2021,Estates & Facilities,SALFORD ROYAL NHS FT,0000670596,"25,974.41",
Department of Health,The Christie NHS Foundation Trust,15/07/2021,Rental Building - June 2021,Estates & Facilities,SALFORD ROYAL NHS FT,0000670600,"25,974.41",
Department of Health,The Christie NHS Foundation Trust,15/07/2021,Rental Building - May 2021,Estates & Facilities,SALFORD ROYAL NHS FT,0000670601,"25,974.41",
Department of Health,The Christie NHS Foundation Trust,15/07/2021,PET-CT Recharge - May 2021, Christie Medical Physics,ALLIANCE MEDICAL LTD,0000670336,"101,412.00",
Department of Health,The Christie NHS Foundation Trust,15/07/2021,Construction Works,Capital,IDEAS BY  MUSIC  LTD,0000670498,"41,735.40",
Department of Health,The Christie NHS Foundation Trust,15/07/2021,Car Park Construction,Capital,VINCI CONSTRUCTION UK LIMITED,0000671334,"687,047.00",
Department of Health,The Christie NHS Foundation Trust,15/07/2021,All Wards & Departments,The Christie NHS FT Balance,NHS SUPPLY CHAIN,0000671422,"67,055.29",
Department of Health,The Christie NHS Foundation Trust,15/07/2021,All Wards & Departments,The Christie NHS FT Balance,NHS SUPPLY CHAIN,0000671423,"69,209.78",
Department of Health,The Christie NHS Foundation Trust,15/07/2021,All Wards & Departments,The Christie NHS FT Balance,NHS SUPPLY CHAIN,0000671425,"60,430.74",
Department of Health,The Christie NHS Foundation Trust,22/07/2021,Drugs,Drugs,BAXTER HEALTHCARE LTD,0000668843,"102,743.78",
Department of Health,The Christie NHS Foundation Trust,22/07/2021,Drugs,Drugs,BAXTER HEALTHCARE LTD,0000671216,"251,850.73",
Department of Health,The Christie NHS Foundation Trust,22/07/2021,Drugs,Drugs,BAXTER HEALTHCARE LTD,0000671244,"146,365.79",
Department of Health,The Christie NHS Foundation Trust,22/07/2021,Drugs,Drugs,BAXTER HEALTHCARE LTD,0000671222,"90,356.54",
Department of Health,The Christie NHS Foundation Trust,22/07/2021,Drugs,Drugs,BAXTER HEALTHCARE LTD,0000671232,"87,312.24",
Department of Health,The Christie NHS Foundation Trust,22/07/2021,Drugs,Drugs,EAST CHESHIRE NHS TRUST,0000669832,"99,535.45",
Department of Health,The Christie NHS Foundation Trust,22/07/2021,Drugs,Drugs,MID CHESHIRE HOSPITALS NHS FT,0000669352,"161,685.53",
Department of Health,The Christie NHS Foundation Trust,22/07/2021,Blood Products,Network Services,NHS BLOOD AND TRANSPLANT,0000667748,"49,367.17",
Department of Health,The Christie NHS Foundation Trust,22/07/2021,Blood Products,Network Services,NHS BLOOD AND TRANSPLANT,0000669706,"50,146.89",
Department of Health,The Christie NHS Foundation Trust,22/07/2021,Patient Accommodation,Network Services,STAYCITY MANCHESTER LTD,0000665235,"122,200.68",
Department of Health,The Christie NHS Foundation Trust,22/07/2021,Patient Accommodation,Network Services,STAYCITY MANCHESTER LTD,0000668017,"98,632.59",
Department of Health,The Christie NHS Foundation Trust,22/07/2021,Patient Accommodation,Network Services,STAYCITY MANCHESTER LTD,0000669612,"116,011.59",
Department of Health,The Christie NHS Foundation Trust,22/07/2021,Clinical Activity Charge - April 2021,Network Services,WRIGHTINGTON WIGAN AND LEIGH NHS FT,0000666394,"277,691.07",
Department of Health,The Christie NHS Foundation Trust,22/07/2021,Clinical Activity Charge - May 2021,Network Services,WRIGHTINGTON WIGAN AND LEIGH NHS FT,0000668615,"277,691.07",
Department of Health,The Christie NHS Foundation Trust,22/07/2021,Clinical Activity Charge - June 2021,Network Services,WRIGHTINGTON WIGAN AND LEIGH NHS FT,0000669947,"277,691.07",
Department of Health,The Christie NHS Foundation Trust,22/07/2021,Gas Supply Bill,Estates & Facilities,VITAL ENERGI SOLUTIONS LTD,0000670981,"37,968.26",
Department of Health,The Christie NHS Foundation Trust,22/07/2021,Water Bill,Estates & Facilities,WATER PLUS,0000671609,"27,970.68",
Department of Health,The Christie NHS Foundation Trust,22/07/2021,Project Management Fee,Capital,ARCADIS LLP,0000670674,"60,815.41",
Department of Health,The Christie NHS Foundation Trust,22/07/2021,Construction Works,Capital,F PARKINSON LTD,0000671542,"36,272.14",
Department of Health,The Christie NHS Foundation Trust,22/07/2021,Computer Equipment,Digital Services,CCS MEDIA LIMITED,0000670399,"25,776.00",
Department of Health,The Christie NHS Foundation Trust,22/07/2021,Computer Equipment,Digital Services,CCS MEDIA LIMITED,0000670412,"27,924.00",
Department of Health,The Christie NHS Foundation Trust,22/07/2021,Software Application Subscription Renewal,Digital Services,SOFTCAT PLC,0000670970,"177,737.71",
Department of Health,The Christie NHS Foundation Trust,22/07/2021,All Wards & Departments,The Christie NHS FT Balance,NHS SUPPLY CHAIN,0000671424,"68,801.96",
Department of Health,The Christie NHS Foundation Trust,27/07/2021,Medical Equipment,Capital,SIGMAPHI,0000671131,"78,361.20",
Department of Health,The Christie NHS Foundation Trust,29/07/2021,Drugs,Drugs,BAXTER HEALTHCARE LTD,0000671269,"104,324.75",
Department of Health,The Christie NHS Foundation Trust,29/07/2021,Drugs,Drugs,BAXTER HEALTHCARE LTD,0000671300,"94,045.01",
Department of Health,The Christie NHS Foundation Trust,29/07/2021,Drugs,Drugs,BAXTER HEALTHCARE LTD,0000671258,"50,904.00",
Department of Health,The Christie NHS Foundation Trust,29/07/2021,Drugs,Drugs,BAXTER HEALTHCARE LTD,0000671652,"47,171.40",
Department of Health,The Christie NHS Foundation Trust,29/07/2021,Drugs,Drugs,BAXTER HEALTHCARE LTD,0000671249,"75,456.70",
Department of Health,The Christie NHS Foundation Trust,29/07/2021,Drugs,Drugs,NOVARTIS PHARMACEUTICALS UK LTD,0000671406,"257,184.00",
Department of Health,The Christie NHS Foundation Trust,29/07/2021,Drugs,Drugs,TAMESIDE AND GLOSSOP INTEGRATED CARE NHS,0000664360,"70,070.11",
Department of Health,The Christie NHS Foundation Trust,29/07/2021,Drugs,Drugs,TAMESIDE AND GLOSSOP INTEGRATED CARE NHS,0000662223,"122,182.11",
Department of Health,The Christie NHS Foundation Trust,29/07/2021,Drugs,Drugs,TAMESIDE AND GLOSSOP INTEGRATED CARE NHS,0000664347,"88,042.40",
Department of Health,The Christie NHS Foundation Trust,29/07/2021,Drugs,Drugs,THE CHRISTIE CLINIC (HCA),0000671292,"38,325.00",
Department of Health,The Christie NHS Foundation Trust,29/07/2021,Cancer Medicine,Network Services,GILEAD SCIENCES LTD,0000671574,"227,605.00",
Department of Health,The Christie NHS Foundation Trust,29/07/2021,Medical Equipment,Network Services,GILEAD SCIENCES LTD,0000670939,"227,605.00",
Department of Health,The Christie NHS Foundation Trust,29/07/2021,Provision Charge Services - July 2021,Network Services,MID CHESHIRE HOSPITALS NHS FT,0000671061,"52,893.00",
Department of Health,The Christie NHS Foundation Trust,29/07/2021,Patient Accommodation,Network Services,STAYCITY MANCHESTER LTD,0000672210,"120,009.82",
Department of Health,The Christie NHS Foundation Trust,29/07/2021,Blood Products,Network Services,THE ANTHONY NOLAN BONE MARROW,0000670759,"32,890.00",
Department of Health,The Christie NHS Foundation Trust,29/07/2021,Energy Costs,Estates & Facilities,VITAL ENERGI SOLUTIONS LTD,0000670979,"115,073.13",
Department of Health,The Christie NHS Foundation Trust,29/07/2021,NHS Patient Fees, Other Income Levies and Gra,THE CHRISTIE CLINIC (HCA),0000671290,"335,689.00",
Department of Health,The Christie NHS Foundation Trust,29/07/2021,PET-CT Recharge - April 2021, Christie Medical Physics,ALLIANCE MEDICAL LTD,0000672228,"66,636.00",
Department of Health,The Christie NHS Foundation Trust,29/07/2021,Medical Equipment,Research & Innovation,UNIVERSITY OF MANCHESTER,0000666510,"48,170.00",
Department of Health,The Christie NHS Foundation Trust,29/07/2021,Project Management Services,Capital,MACE LTD,0000672716,"39,110.40",
Department of Health,The Christie NHS Foundation Trust,29/07/2021,Project Management Services,Capital,MACE LTD,0000672718,"39,110.40",
Department of Health,The Christie NHS Foundation Trust,29/07/2021,Medical Equipment,Capital,ONCOLOGY IMAGING SYSTEMS LTD,0000672234,"61,941.60",
Department of Health,The Christie NHS Foundation Trust,29/07/2021,Software Licencing Fee,Digital Services,IQ HEALTH TECH LTD,0000671050,"32,500.00",
Department of Health,The Christie NHS Foundation Trust,29/07/2021,System Support Package - August 2021,Digital Services,SYSTEM C HEALTHCARE,0000671576,"23,362.71",
Department of Health,The Christie NHS Foundation Trust,29/07/2021,Network Services,Digital Services,VIRGIN MEDIA BUSINESS,0000671173,"51,397.51",
